bitfinex-derivatives/quotes_SOLF0:USTF0_20250501
["timestamp","ask_amount","ask_price","bid_price","bid_amount"]
[1746076131994,6.7285,148.6,148.57,6.7297]
[1746076134093,6.7282,148.61,148.57,6.7297]
[1746076134393,6.7282,148.61,148.55,23.58]
[1746076134590,6.7282,148.61,148.58,6.7292]
[1746076136394,7.12635208,148.63,148.57,6.7295]
[1746076136593,7.12635208,148.63,148.55,23.58]
[1746076137096,6.7283,148.61,148.57,6.7294]
[1746076138496,6.7283,148.61,148.58,6.7293]
[1746076138997,6.7277,148.62,148.6,6.7284]
[1746076139295,6.7277,148.62,148.55,23.58]
[1746076139496,30.70635208,148.66,148.55,23.58]
[1746076139700,30.70635208,148.66,148.58,6.7293]
[1746076139997,7.12635208,148.63,148.55,23.58]
[1746076140198,6.7291,148.59,148.56,6.73]
[1746076142500,23.6,148.62,148.55,23.58]
[1746076142699,23.6,148.65,148.55,23.58]
[1746076143303,30.72635208,148.65,148.55,23.58]
[1746076143601,6.728,148.61,148.58,6.7291]
[1746076147102,6.7277,148.62,148.59,6.7287]
[1746076147496,6.7269,148.64,148.61,6.7276]
[1746076147696,23.6,148.65,148.59,23.6]
[1746076147896,2.1196,148.66,148.59,23.6]
[1746076148201,6.7268,148.64,148.61,6.7277]
[1746076149406,23.6,148.71,148.59,23.6]
[1746076149802,6.7252,148.68,148.64,6.7262]
[1746076150406,6.7253,148.67,148.64,6.7262]
[1746076150905,6.7246,148.69,148.63,23.6]
[1746076151208,6.7246,148.69,148.64,2.1032]
[1746076151599,6.7246,148.69,148.65,6.7259]
[1746076152106,6.7241,148.7,148.66,6.7254]
[1746076154109,6.7243,148.69,148.66,6.7254]
[1746076155404,30.72635208,148.71,148.64,2.1032]
[1746076155606,7.12635208,148.68,148.62,23.6]
[1746076155909,6.7264,148.65,148.62,23.6]
[1746076156710,6.7266,148.64,148.62,23.6]
[1746076157006,6.7266,148.64,148.6,6.7282]
[1746076157407,6.7271,148.63,148.59,30.3287]
[1746076157605,23.6,148.67,148.59,23.6]
[1746076157606,25.5888,148.67,148.59,23.6]
[1746076157811,6.7269,148.64,148.6,6.7282]
[1746076158112,25.5888,148.67,148.59,23.6]
[1746076158513,6.7263,148.65,148.62,6.7272]
[1746076158811,23.6,148.67,148.59,23.6]
[1746076159008,6.7257,148.66,148.63,6.7269]
[1746076159312,23.6,148.67,148.59,23.6]
[1746076159611,30.3256,148.67,148.63,6.7268]
[1746076159912,7.12635208,148.65,148.59,23.6]
[1746076160409,6.7279,148.62,148.59,23.6]
[1746076161110,6.7279,148.62,148.58,8.7229]
[1746076161410,6.7279,148.62,148.59,6.7288]
[1746076162014,6.7272,148.63,148.6,6.7284]
[1746076162915,6.7278,148.62,148.59,6.7287]
[1746076163108,6.7278,148.62,148.58,1.9937]
[1746076163306,1.9716,148.66,148.58,1.9937]
[1746076163506,6.7282,148.61,148.58,1.9937]
[1746076164112,6.7277,148.62,148.58,8.723]
[1746076164813,6.7271,148.63,148.58,1.9937]
[1746076165514,25.5516,148.66,148.58,1.9937]
[1746076165915,7.12635208,148.61,148.58,1.9937]
[1746076166210,23.58,148.62,148.53,23.58]
[1746076166411,23.58,148.62,148.54,2.1069]
[1746076166714,23.58,148.62,148.56,6.73]
[1746076166916,23.58,148.62,148.54,2.1069]
[1746076167212,6.7286,148.6,148.56,6.7299]
[1746076171324,6.7281,148.61,148.57,23.58]
[1746076171816,6.7281,148.61,148.57,30.3094]
[1746076172820,6.7281,148.61,148.58,6.7293]
[1746076173919,6.7281,148.61,148.57,23.58]
[1746076173920,23.58,148.65,148.57,23.58]
[1746076174621,6.7269,148.64,148.57,23.58]
[1746076174823,6.7269,148.64,148.58,2.0638]
[1746076175321,6.7269,148.64,148.61,6.7277]
[1746076181124,6.7269,148.64,148.6,6.7282]
[1746076181625,6.7269,148.64,148.58,2.0638]
[1746076182324,6.7269,148.64,148.6,6.728]
[1746076183027,6.7269,148.64,148.61,6.7279]
[1746076185025,30.3063,148.65,148.62,6.7275]
[1746076185220,23.58,148.68,148.58,2.0638]
[1746076185425,23.58,148.68,148.58,3.9977]
[1746076185921,6.726,148.66,148.63,6.7269]
[1746076186126,23.58,148.68,148.59,2.0145]
[1746076186729,23.58,148.68,148.63,6.7266]
[1746076187426,6.726,148.66,148.63,6.7266]
[1746076190235,30.3052,148.68,148.62,23.58]
[1746076190436,6.7252,148.68,148.62,23.58]
[1746076190839,6.7252,148.68,148.65,6.7261]
[1746076191837,6.7253,148.67,148.65,6.7261]
[1746076192240,23.66,148.71,148.62,23.58]
[1746076192438,6.7259,148.66,148.62,23.58]
[1746076192740,7.12635208,148.69,148.64,6.7266]
[1746076193240,7.12635208,148.69,148.65,6.7261]
[1746076193434,23.66,148.71,148.65,6.7261]
[1746076193840,6.7245,148.69,148.66,6.7256]
[1746076197540,6.7241,148.7,148.67,6.7252]
[1746076199843,532.96,148.76,148.64,1.9638]
[1746076200047,23.66,148.75,148.65,2.1081]
[1746076200248,23.66,148.75,148.66,23.66]
[1746076200444,23.66,148.75,148.66,30.3855]
[1746076200645,7.12635208,148.73,148.66,30.3855]
[1746076201149,6.7243,148.7,148.66,30.3855]
[1746076201647,6.7243,148.7,148.67,6.7252]
[1746076201942,6.7236,148.71,148.66,23.66]
[1746076202147,25.6356,148.75,148.68,6.7245]
[1746076203346,6.7235,148.71,148.68,6.7245]
[1746076204048,6.7233,148.72,148.66,23.66]
[1746076204848,6.7235,148.71,148.66,23.66]
[1746076205348,6.7232,148.72,148.69,6.7243]
[1746076207151,6.7235,148.71,148.68,6.7246]
[1746076207551,23.66,148.75,148.66,23.66]
[1746076207850,6.7232,148.72,148.69,6.7243]
[1746076208351,23.66,148.75,148.66,23.66]
[1746076208655,6.7237,148.71,148.68,6.7246]
[1746076209352,6.7232,148.72,148.69,6.7242]
[1746076210152,6.7226,148.73,148.71,6.7234]
[1746076210350,23.66,148.75,148.71,6.7234]
[1746076210549,6.7224,148.74,148.7,6.7237]
[1746076210753,6.7224,148.74,148.66,23.66]
[1746076211451,23.66,148.75,148.66,23.66]
[1746076213253,6.7237,148.71,148.67,6.7248]
[1746076213752,6.7237,148.71,148.68,6.7247]
[1746076215153,6.7232,148.72,148.68,6.7247]
[1746076215348,6.7232,148.72,148.69,6.7243]
[1746076215853,6.7227,148.73,148.7,6.7237]
[1746076216154,23.66,148.75,148.7,6.7237]
[1746076216552,6.7223,148.74,148.71,6.7232]
[1746076216755,23.64,148.79,148.7,23.64]
[1746076216952,23.64,148.79,148.71,25.7342]
[1746076217753,6.7211,148.77,148.74,6.7218]
[1746076217954,23.64,148.79,148.71,25.7342]
[1746076218151,0.24441,148.8,148.71,25.7342]
[1746076218354,0.24441,148.8,148.72,1.9795]
[1746076218755,0.24441,148.8,148.77,6.7203]
[1746076219555,0.24441,148.8,148.76,30.361]
[1746076219757,6.96391,148.8,148.76,30.361]
[1746076220758,6.7201,148.79,148.76,30.361]
[1746076221555,0.24441,148.8,148.76,30.361]
[1746076221954,0.24441,148.8,148.76,23.64]
[1746076222559,6.7201,148.79,148.76,23.64]
[1746076223157,6.7201,148.79,148.76,30.3612]
[1746076223356,6.7201,148.79,148.76,23.64]
[1746076225461,6.7203,148.78,148.76,23.64]
[1746076226662,25.5923,148.86,148.77,2.0574]
[1746076227157,6.7184,148.83,148.79,6.7197]
[1746076227660,7.12635208,148.84,148.77,2.0574]
[1746076228664,6.7197,148.8,148.77,2.0574]
[1746076229165,7.12635208,148.84,148.77,2.0574]
[1746076229764,6.7198,148.79,148.77,2.0574]
[1746076231563,6.7196,148.8,148.77,2.0574]
[1746076232665,6.7191,148.81,148.77,2.0574]
[1746076233165,6.7191,148.81,148.77,8.778]
[1746076233665,6.7186,148.82,148.77,2.0574]
[1746076233866,7.12635208,148.84,148.77,2.0574]
[1746076234168,6.7188,148.82,148.77,2.0574]
[1746076234767,6.719,148.81,148.78,6.7202]
[1746076236267,6.7186,148.82,148.79,6.7198]
[1746076237164,6.7185,148.82,148.79,6.7197]
[1746076238266,6.7182,148.83,148.79,6.7197]
[1746076238470,23.62,148.85,148.77,2.0574]
[1746076238673,23.62,148.85,148.78,1.9372]
[1746076238868,23.62,148.85,148.79,23.62]
[1746076239172,6.7179,148.84,148.8,6.7191]
[1746076239375,23.62,148.85,148.8,6.7191]
[1746076240267,6.7181,148.83,148.8,6.7191]
[1746076240469,6.7181,148.83,148.81,6.7189]
[1746076240767,6.7177,148.84,148.81,6.7189]
[1746076241173,23.62,148.85,148.79,23.62]
[1746076241370,0.27886,148.88,148.79,23.62]
[1746076241573,6.7172,148.85,148.79,23.62]
[1746076241969,6.7176,148.84,148.79,23.62]
[1746076242373,23.89886,148.88,148.79,23.62]
[1746076242573,6.7176,148.84,148.79,23.62]
[1746076242776,7.12635208,148.86,148.79,23.62]
[1746076243168,7.12635208,148.86,148.8,6.7193]
[1746076243574,6.7183,148.83,148.8,6.7193]
[1746076244474,7.12635208,148.86,148.79,30.3397]
[1746076245277,6.7183,148.83,148.79,30.3397]
[1746076245475,6.7183,148.83,148.8,6.7193]
[1746076246472,6.7175,148.85,148.82,6.7185]
[1746076246776,7.12635208,148.86,148.79,23.62]
[1746076246977,6.7179,148.84,148.81,6.7189]
[1746076250780,6.7173,148.85,148.82,6.7184]
[1746076251481,6.7169,148.86,148.83,6.7179]
[1746076251690,6.7169,148.86,148.79,23.62]
[1746076251878,23.62,148.88,148.79,23.62]
[1746076252078,6.7164,148.87,148.84,6.7173]
[1746076252272,23.62,148.88,148.79,23.62]
[1746076252477,25.6286,148.91,148.79,30.74635208]
[1746076252780,6.7157,148.89,148.86,6.7164]
[1746076252980,25.6286,148.91,148.83,23.58]
[1746076253175,7.01352,148.92,148.84,1.9368]
[1746076253372,7.01352,148.92,148.84,5.9346]
[1746076254683,6.7145,148.91,148.84,5.9346]
[1746076254984,0.29952,148.92,148.84,5.9346]
[1746076255284,0.29952,148.92,148.87,6.7159]
[1746076255680,6.7147,148.91,148.87,6.7159]
[1746076255881,0.29952,148.92,148.88,6.7155]
[1746076256079,0.29952,148.92,148.84,5.9346]
[1746076256386,7.01372,148.92,148.88,6.7155]
[1746076257485,7.01372,148.92,148.84,5.9346]
[1746076257486,0.29952,148.92,148.89,6.7152]
[1746076257985,0.29952,148.92,148.9,6.7147]
[1746076259882,0.29952,148.92,148.87,23.58]
[1746076259883,0.29952,148.92,148.91,6.7144]
[1746076260083,0.29952,148.92,148.91,6.65924438]
[1746076260385,7.12635208,148.98,148.87,23.58]
[1746076260586,9.23595208,148.98,148.87,23.58]
[1746076261087,6.7118,148.97,148.93,6.7132]
[1746076261288,9.23595208,148.98,148.87,23.58]
[1746076261686,6.712,148.97,148.93,6.7134]
[1746076262085,6.712,148.97,148.87,23.58]
[1746076262286,15.94735208,148.98,148.94,6.7129]
[1746076262488,9.23595208,148.98,148.94,6.7129]
[1746076262686,9.23595208,148.98,148.87,23.58]
[1746076263191,6.7121,148.97,148.93,6.7133]
[1746076263486,9.23595208,148.98,148.93,6.7133]
[1746076263684,6.7124,148.96,148.92,6.7138]
[1746076264484,6.7124,148.96,148.87,23.58]
[1746076264690,6.7126,148.95,148.87,23.58]
[1746076264893,7.12635208,148.95,148.84,5.9346]
[1746076265191,6.7137,148.93,148.88,6.7154]
[1746076265390,7.12635208,148.95,148.88,6.7154]
[1746076265591,7.12635208,148.95,148.85,23.56]
[1746076265790,6.7141,148.92,148.88,6.7158]
[1746076266086,7.12635208,148.95,148.85,23.56]
[1746076266292,7.12635208,148.92,148.85,23.56]
[1746076266593,13.84035208,148.92,148.88,6.7155]
[1746076271796,13.84035208,148.92,148.89,6.7153]
[1746076272797,6.7136,148.93,148.89,6.7153]
[1746076272997,7.12635208,148.95,148.89,6.7153]
[1746076273598,6.7142,148.92,148.88,6.7156]
[1746076276103,6.7145,148.91,148.88,6.7156]
[1746076276403,7.12635208,148.95,148.87,6.7161]
[1746076276800,6.7147,148.91,148.87,6.7161]
[1746076277505,6.7147,148.91,148.88,6.7157]
[1746076278405,6.7147,148.91,148.87,6.716]
[1746076279105,6.7149,148.9,148.87,6.716]
[1746076279907,6.7154,148.89,148.86,6.7165]
[1746076280210,23.56,148.92,148.85,23.56]
[1746076280400,6.7149,148.9,148.87,6.716]
[1746076281608,6.7155,148.89,148.86,6.7163]
[1746076282104,6.7149,148.9,148.87,6.7161]
[1746076283408,30.2744,148.92,148.85,23.54]
[1746076283609,6.7144,148.92,148.85,25.5228]
[1746076284007,6.7144,148.92,148.89,6.7149]
[1746076285908,6.7137,148.93,148.9,6.7148]
[1746076289912,20.1403,149.05,148.93,6.7132]
[1746076290114,7.12635208,149.0,148.93,6.7132]
[1746076290309,23.54,148.99,148.93,6.7132]
[1746076290510,6.712,148.97,148.94,6.713]
[1746076291017,6.7126,148.95,148.91,23.54]
[1746076291216,23.54,148.99,148.91,23.54]
[1746076291618,6.7126,148.96,148.92,6.7138]
[1746076292518,6.7126,148.95,148.92,6.7138]
[1746076292718,23.54,148.99,148.91,23.54]
[1746076292719,23.54,148.99,148.93,6.7135]
[1746076293219,6.7126,148.95,148.93,6.7135]
[1746076293815,6.7126,148.95,148.92,6.7138]
[1746076294017,6.66708366,148.95,148.92,6.7138]
[1746076294210,6.7124,148.96,148.92,6.7138]
[1746076294621,6.7124,148.96,148.93,6.7132]
[1746076295821,6.7126,148.95,148.92,6.7138]
[1746076296319,23.54,148.99,148.91,23.54]
[1746076297018,23.54,148.99,148.91,30.2541]
[1746076297420,23.54,148.99,148.91,23.54]
[1746076297722,7.12635208,148.97,148.9,6.7145]
[1746076297919,7.12635208,148.97,148.88,23.54]
[1746076298722,6.714,148.92,148.89,6.7151]
[1746076303722,6.7145,148.91,148.88,30.2556]
[1746076304226,6.7142,148.92,148.89,6.7152]
[1746076308126,6.7142,148.92,148.89,8.7264]
[1746076311830,23.54,148.95,148.89,2.0112]
[1746076312030,23.48,148.98,148.89,3.9794]
[1746076312423,7.12635208,148.97,148.89,8.7264]
[1746076313233,7.12635208,148.97,148.89,2.0112]
[1746076314332,6.7145,148.91,148.89,2.0112]
[1746076314529,7.12635208,148.97,148.89,2.0112]
[1746076315027,6.7142,148.92,148.89,8.7264]
[1746076316534,6.7144,148.91,148.89,2.0112]
[1746076318435,6.7141,148.92,148.89,8.7265]
[1746076319835,6.7144,148.91,148.89,2.0112]
[1746076320036,23.48,148.95,148.89,2.0112]
[1746076320535,6.7144,148.92,148.89,8.7264]
[1746076320834,23.48,148.95,148.89,2.0112]
[1746076321137,6.7143,148.92,148.89,2.0112]
[1746076321938,6.7143,148.92,148.89,8.7264]
[1746076323239,6.7136,148.93,148.9,6.7147]
[1746076325536,6.7136,148.93,148.89,2.0112]
[1746076325537,6.714,148.92,148.89,2.0112]
[1746076325839,6.714,148.92,148.89,8.7264]
[1746076328736,23.48,148.95,148.89,2.0112]
[1746076329035,23.48,148.95,148.85,4.0041]
[1746076329240,23.48,148.95,148.86,23.48]
[1746076329440,9.06635208,148.94,148.86,23.48]
[1746076329642,9.06635208,148.94,148.85,2.0213]
[1746076329834,7.12635208,148.91,148.84,23.48]
[1746076330038,23.48,148.9,148.84,23.48]
[1746076330236,6.7169,148.86,148.81,557.3813]
[1746076330544,23.48,148.9,148.82,6.7182]
[1746076330735,6.7175,148.85,148.82,6.7182]
[1746076331542,6.7176,148.84,148.81,32.2201]
[1746076331733,6.7176,148.84,148.81,30.1988]
[1746076331930,7.12635208,148.88,148.81,23.48]
[1746076332340,7.12635208,148.88,148.8,6.7191]
[1746076332841,7.12635208,148.88,148.81,6.7188]
[1746076333845,6.7179,148.84,148.81,6.7188]
[1746076338746,6.7173,148.85,148.81,6.7188]
[1746076339450,6.7176,148.84,148.81,6.7188]
[1746076341049,6.7173,148.85,148.82,6.7185]
[1746076342149,23.48,148.86,148.83,6.7178]
[1746076342350,25.4604,148.89,148.83,6.7178]
[1746076342550,6.7166,148.87,148.83,6.7178]
[1746076344154,6.7167,148.86,148.83,6.7178]
[1746076344655,6.7185,148.82,148.79,2.0719]
[1746076344852,23.44,148.85,148.77,23.44]
[1746076345059,23.44,148.85,148.78,6.72]
[1746076345356,6.7189,148.82,148.78,6.72]
[1746076347260,6.7189,148.82,148.79,6.7196]
[1746076348259,6.7181,148.83,148.8,6.7193]
[1746076348460,23.44,148.85,148.8,6.7193]
[1746076349255,6.7179,148.84,148.8,6.7193]
[1746076349863,6.7179,148.84,148.81,6.7188]
[1746076351464,23.44,148.85,148.77,23.44]
[1746076352264,6.7182,148.83,148.77,23.44]
[1746076353159,6.7182,148.83,148.8,6.7191]
[1746076355462,6.7182,148.83,148.81,6.7189]
[1746076355862,6.7182,148.83,148.77,23.44]
[1746076356165,6.7182,148.83,148.8,6.7191]
[1746076357368,23.44,148.85,148.79,6.7196]
[1746076357369,6.7185,148.82,148.79,6.7196]
[1746076358470,6.7185,148.82,148.78,6.7201]
[1746076359170,6.719,148.81,148.78,6.7201]
[1746076366074,6.7186,148.82,148.79,6.7198]
[1746076366776,6.7189,148.81,148.79,6.7198]
[1746076368883,6.7189,148.81,148.78,6.7201]
[1746076369280,6.7187,148.82,148.77,23.44]
[1746076369578,6.7187,148.82,148.79,6.7198]
[1746076372983,6.719,148.81,148.78,6.7201]
[1746076375585,6.7194,148.8,148.77,30.1605]
[1746076375777,30.56635208,148.85,148.76,2.0446]
[1746076375979,3.8768,148.84,148.74,23.42]
[1746076376280,6.7205,148.78,148.74,23.42]
[1746076376681,23.42,148.81,148.74,23.42]
[1746076376879,6.721,148.77,148.74,23.42]
[1746076377383,23.42,148.81,148.74,23.42]
[1746076377583,4.55525338,148.79,148.74,23.42]
[1746076377984,6.7204,148.78,148.75,6.7215]
[1746076378183,27.97525338,148.81,148.75,4.55525338]
[1746076378484,23.42,148.81,148.78,6.72]
[1746076378673,23.42,148.81,148.77,4.55525338]
[1746076378874,4.55525338,148.83,148.77,4.55525338]
[1746076379083,11.27365338,148.83,148.79,6.7195]
[1746076379380,23.44,148.84,148.79,4.55525338]
[1746076379583,23.44,148.84,148.78,23.44]
[1746076379784,23.44,148.84,148.79,2.0155]
[1746076379986,23.44,148.84,148.81,6.7187]
[1746076380785,30.1577,148.84,148.81,6.7187]
[1746076383683,30.1577,148.84,148.8,6.7192]
[1746076383888,6.7177,148.84,148.8,6.7192]
[1746076384679,6.7181,148.83,148.8,6.7192]
[1746076385083,23.44,148.86,148.8,6.7192]
[1746076385387,6.7177,148.84,148.8,6.7192]
[1746076387990,6.7181,148.83,148.8,6.7192]
[1746076388988,6.7177,148.84,148.8,6.7192]
[1746076390889,6.7177,148.84,148.81,6.7189]
[1746076391691,23.44,148.86,148.79,2.0155]
[1746076391883,30.551571,148.86,148.79,2.0155]
[1746076392591,6.7183,148.83,148.79,8.7349]
[1746076394092,6.7183,148.83,148.8,6.7193]
[1746076394791,6.7179,148.84,148.81,6.7188]
[1746076399694,6.718,148.83,148.81,6.7188]
[1746076399895,6.718,148.83,148.8,6.7193]
[1746076400596,6.7177,148.84,148.79,2.0155]
[1746076401394,6.7177,148.84,148.81,6.7187]
[1746076402898,6.7177,148.84,148.82,6.7184]
[1746076404999,6.7177,148.84,148.81,6.7188]
[1746076407202,6.718,148.83,148.8,6.7192]
[1746076408605,6.7185,148.82,148.79,8.7351]
[1746076408905,4.5520364,148.83,148.79,8.7351]
[1746076409210,6.7186,148.82,148.79,8.7351]
[1746076411011,11.2702364,148.83,148.8,6.7193]
[1746076411205,6.7182,148.83,148.8,6.7193]
[1746076412507,6.7178,148.84,148.81,6.7189]
[1746076415016,6.7181,148.83,148.8,6.7192]
[1746076418916,6.7178,148.84,148.81,6.7188]
[1746076419117,4.5520364,148.85,148.81,6.7188]
[1746076420219,6.718,148.84,148.81,6.7188]
[1746076420520,4.5520364,148.85,148.8,6.7192]
[1746076420820,6.7181,148.83,148.8,6.7192]
[1746076423520,6.7181,148.83,148.81,6.7189]
[1746076425018,4.5520364,148.85,148.79,2.0155]
[1746076425225,1.9484,148.88,148.82,4.5520364]
[1746076425724,6.7165,148.87,148.84,6.7173]
[1746076426523,6.7159,148.88,148.85,6.717]
[1746076426727,27.9720364,148.89,148.82,27.9720364]
[1746076427027,34.6877364,148.89,148.85,6.7169]
[1746076427226,27.9720364,148.89,148.82,27.9720364]
[1746076427526,6.7166,148.87,148.83,6.7177]
[1746076427824,6.7166,148.87,148.82,27.9720364]
[1746076428816,6.7166,148.87,148.84,6.7175]
[1746076429021,6.7168,148.86,148.82,27.9720364]
[1746076429229,27.9720364,148.89,148.82,27.9720364]
[1746076429437,6.7164,148.87,148.83,6.7176]
[1746076429930,6.7164,148.87,148.84,6.7176]
[1746076431031,6.7167,148.86,148.83,6.7179]
[1746076431330,27.9720364,148.89,148.82,27.9720364]
[1746076432324,6.7164,148.87,148.84,6.7174]
[1746076435834,25.5182,148.92,148.84,4.5520364]
[1746076436031,4.5520364,148.91,148.84,4.5520364]
[1746076436432,4.5520364,148.91,148.85,1.9262]
[1746076437439,4.5520364,148.89,148.82,27.9720364]
[1746076438337,6.7166,148.87,148.83,6.7178]
[1746076439635,6.7168,148.86,148.83,6.7178]
[1746076441336,4.5520364,148.87,148.81,6.4782364]
[1746076441834,6.7174,148.85,148.81,13.1968364]
[1746076442235,6.7174,148.85,148.81,6.4782364]
[1746076442742,6.7174,148.85,148.82,6.7182]
[1746076448341,6.7169,148.86,148.82,6.7182]
[1746076451341,4.5520364,148.87,148.81,13.1970364]
[1746076452147,6.7174,148.85,148.82,6.7183]
[1746076454653,6.7176,148.84,148.82,6.7183]
[1746076460449,6.7176,148.84,148.81,11.2707364]
[1746076460850,6.7181,148.83,148.8,23.42]
[1746076461449,6.7181,148.83,148.81,6.7189]
[1746076461949,6.7181,148.83,148.8,30.1392]
[1746076463051,6.7185,148.82,148.8,23.42]
[1746076463251,6.7185,148.82,148.79,11.2717364]
[1746076463851,6.7181,148.83,148.8,6.7192]
[1746076468458,6.7185,148.82,148.79,11.2717364]
[1746076469151,6.7182,148.83,148.8,6.7193]
[1746076473557,6.7177,148.84,148.81,6.7189]
[1746076474459,6.718,148.83,148.8,6.7192]
[1746076475259,6.718,148.83,148.81,6.7189]
[1746076476361,6.718,148.83,148.8,6.7192]
[1746076477762,6.718,148.83,148.81,6.7189]
[1746076478464,6.7178,148.84,148.81,6.7189]
[1746076482362,4.5520364,148.85,148.81,6.7189]
[1746076482566,6.718,148.83,148.8,6.7192]
[1746076483367,6.718,148.83,148.81,6.7189]
[1746076483667,6.7177,148.84,148.81,6.7189]
[1746076483965,23.42,148.86,148.83,6.7179]
[1746076485073,30.137,148.86,148.83,6.7179]
[1746076485466,23.42,148.86,148.83,6.7179]
[1746076486169,6.7172,148.85,148.82,6.7183]
[1746076486969,6.7172,148.85,148.81,11.2709364]
[1746076488769,6.7172,148.85,148.81,4.5520364]
[1746076488971,6.7178,148.84,148.81,4.5520364]
[1746076489170,4.5520364,148.89,148.82,4.5520364]
[1746076489373,4.5520364,148.89,148.83,8.6649]
[1746076489566,4.5520364,148.89,148.83,1.9472]
[1746076489768,4.5520364,148.85,148.8,27.9720364]
[1746076489970,4.5520364,148.85,148.78,4.5520364]
[1746076490168,6.7191,148.81,148.78,4.5520364]
[1746076490468,4.5520364,148.83,148.76,4.5520364]
[1746076490669,6.7201,148.79,148.76,4.5520364]
[1746076490859,6.7201,148.79,148.76,11.2731364]
[1746076491472,6.7195,148.8,148.76,4.5520364]
[1746076492176,6.7195,148.8,148.77,6.7207]
[1746076492778,6.7191,148.81,148.78,6.7203]
[1746076494481,23.42,148.82,148.76,4.5520364]
[1746076494482,30.1386,148.82,148.79,6.7198]
[1746076496372,6.7186,148.82,148.79,6.7198]
[1746076499982,4.5520364,148.83,148.75,23.42]
[1746076500284,4.5520364,148.83,148.75,27.9720364]
[1746076500783,4.5520364,148.81,148.75,27.9720364]
[1746076501585,4.5520364,148.83,148.77,4.5520364]
[1746076502183,6.7188,148.82,148.78,6.72]
[1746076502377,6.7188,148.82,148.77,4.5520364]
[1746076503085,6.7188,148.82,148.79,6.7196]
[1746076503381,11.2703364,148.83,148.77,4.5520364]
[1746076503575,11.2703364,148.83,148.78,1.9489]
[1746076503782,4.5520364,148.83,148.79,6.7195]
[1746076504485,6.7185,148.82,148.79,6.7195]
[1746076505486,30.0267364,148.85,148.79,4.5520364]
[1746076505889,30.0267364,148.85,148.79,27.9520364]
[1746076506188,6.718,148.84,148.81,6.7188]
[1746076506791,6.718,148.83,148.81,6.7188]
[1746076507488,6.718,148.83,148.8,6.7192]
[1746076509091,25.4747,148.85,148.79,23.4]
[1746076510189,6.7187,148.82,148.79,23.4]
[1746076512393,6.7187,148.82,148.79,30.1197]
[1746076513190,6.719,148.81,148.79,23.4]
[1746076514396,25.4747,148.85,148.79,30.1198]
[1746076514397,6.7186,148.82,148.79,30.1198]
[1746076516396,6.7182,148.83,148.8,6.7193]
[1746076516595,25.4747,148.85,148.79,23.4]
[1746076517891,6.7187,148.82,148.79,23.4]
[1746076519500,6.7187,148.82,148.79,30.1197]
[1746076525611,6.7181,148.83,148.8,6.7193]
[1746076525908,25.4747,148.85,148.79,23.4]
[1746076526601,6.7178,148.84,148.81,6.7186]
[1746076528809,6.7178,148.84,148.8,6.7192]
[1746076533901,6.62678466,148.85,148.8,6.7192]
[1746076534108,6.7181,148.83,148.8,6.7192]
[1746076534313,6.62678466,148.85,148.81,6.7189]
[1746076534506,4.55208466,148.85,148.81,6.7189]
[1746076534707,6.7178,148.84,148.81,6.7189]
[1746076534907,27.95208466,148.87,148.8,4.55208466]
[1746076535103,6.47408466,148.89,148.82,4.55208466]
[1746076535307,6.716,148.88,148.85,6.717]
[1746076535915,11.26748466,148.89,148.86,6.7166]